fUSD/lending_fUSD_20260617
["ID","MTS","AMOUNT","RATE_DAILY","PERIOD"]
[425288095,1781646649000,-500.0,0.00026839,2]
[425288093,1781646649000,-500.0,0.00026839,2]
[425288094,1781646649000,-500.0,0.00026839,2]
[425288092,1781646649000,-500.0,0.00026839,2]
[425288091,1781646649000,-500.0,0.00026839,2]
[425288082,1781646649000,-151.0,0.00026496,2]
[425288090,1781646649000,-500.0,0.00026839,2]
[425288086,1781646649000,-5528.0,0.000266,5]
[425288083,1781646649000,-237.83003328,0.00026496,2]
[425288085,1781646649000,-2494.55939288,0.00026594,2]
[425288087,1781646649000,-500.0,0.00026839,2]
[425288084,1781646649000,-217.15233878,0.00026496,2]
[425288089,1781646649000,-500.0,0.00026839,2]
[425288099,1781646775000,254.38,0.00014226,2]
[425288100,1781646822000,395154.946047,0.00015,2]
[425288102,1781646877000,-151.0,0.00015215,2]
[425288104,1781646878000,-151.0,0.00015215,2]
[425288103,1781646878000,5451.47265081,0.0003013,120]
[425288105,1781646911000,-1.0,0.00015215,2]
[425288109,1781646932000,-13.0,0.00015215,2]
[425288108,1781646932000,-300.0,0.00015214,2]
[425288110,1781646932000,250.0,0.00014,2]
[425288111,1781646964000,-300.0,0.00015215,2]
[425288112,1781646985000,-318.0,0.00015215,2]
[425288113,1781647017000,-150.0,0.00015215,2]
[425288115,1781647038000,-317.0,0.00015,2]
[425288114,1781647038000,4604595.053953,0.00015,2]
[425288116,1781647071000,-300.0,0.00014999,2]
[425288117,1781647072000,4496.51621134,0.0001,120]
[425288118,1781647073000,290.0,0.00018,120]
[425288119,1781647125000,-200.0,0.00015,2]
[425288120,1781647128000,150.0,0.0001455,2]
[425288121,1781647180000,-152.57,0.00014727,2]
[425288123,1781647182000,150.0,0.00014668,2]
[425288122,1781647182000,450.0,0.00030136,120]
[425288124,1781647188000,150.0,0.00014285,2]
[425288127,1781647203000,170.05,0.00012857,2]
[425288126,1781647203000,170.05,0.00011688,2]
[425288128,1781647204000,170.05,0.00014025,2]
[425288130,1781647232000,-382.86883467,0.000149,2]
[425288131,1781647250000,150.0,0.00014453,2]
[425288132,1781647286000,-228.2962,0.00014899,2]
[425288133,1781647292000,197.85,0.00014247,2]
[425288134,1781647310000,150.0,0.00014452,2]
[425288135,1781647313000,779.09,0.0001424,2]
[425288136,1781647338000,-199.5,0.000149,2]
[425288137,1781647346000,200.0,0.0001424,2]
[425288138,1781647371000,150.0,0.00014453,2]
[425288139,1781647399000,799.31,0.00014223,2]
[425288140,1781647432000,150.0,0.00014453,2]
[425288141,1781647458000,693.31,0.00014223,2]
[425288142,1781647493000,150.0,0.00014453,2]
[425288144,1781647515000,513.1,0.00014577,2]
[425288150,1781647567000,-361.15534669,0.000149,2]
[425288153,1781647589000,-361.15534669,0.000149,2]
[425288154,1781647611000,-596.45979071,0.000149,2]
[425288156,1781647694000,328.01,0.00014544,2]
[425288157,1781647723000,200.0,0.00014206,2]
[425288159,1781647750000,163.25,0.00014605,2]
[425288160,1781647778000,2500.0,0.00014172,2]
[425288227,1781647845000,-319.25656961,0.000148,2]
[425288240,1781647846000,-142.38898012,0.00014898,2]
[425288253,1781647846000,-481.45531838,0.00014898,2]
[425288248,1781647846000,-500.0,0.00014898,2]
[425288245,1781647846000,-500.0,0.00014898,2]
[425288244,1781647846000,-500.0,0.00014898,2]
[425288243,1781647846000,-500.0,0.00014898,2]
[425288239,1781647846000,-357.61101988,0.00014898,2]
[425288241,1781647846000,-500.0,0.00014898,2]
[425288238,1781647846000,-500.0,0.00014898,2]
[425288249,1781647846000,-500.0,0.00014898,2]
[425288236,1781647846000,-500.0,0.00014898,2]
[425288237,1781647846000,-500.0,0.00014898,2]
[425288235,1781647846000,-500.0,0.00014898,2]
[425288234,1781647846000,-169.7359251,0.00014898,2]
[425288233,1781647846000,-177.59214138,0.00014898,2]
[425288231,1781647846000,-521.73050472,0.00014898,2]
[425288230,1781647846000,-150.0,0.00014897,2]
[425288229,1781647846000,-2870.05833039,0.000148,2]
[425288232,1781647846000,-528.69984847,0.00014898,2]
[425288242,1781647846000,-500.0,0.00014898,2]
[425288263,1781647846000,-293.08121732,0.00014898,2]
[425288247,1781647846000,-200.0,0.00014898,2]
[425288251,1781647846000,-500.0,0.00014898,2]
[425288269,1781647846000,-500.0,0.00014898,2]
[425288270,1781647846000,-500.0,0.00014898,2]
[425288265,1781647846000,-500.0,0.00014898,2]
[425288266,1781647846000,-500.0,0.00014898,2]
[425288267,1781647846000,-500.0,0.00014898,2]
[425288264,1781647846000,-500.0,0.00014898,2]
[425288258,1781647846000,-500.0,0.00014898,2]
[425288259,1781647846000,-0.50724252,0.00014898,2]
[425288268,1781647846000,-557.4163513,0.00014898,2]
[425288262,1781647846000,-206.91878268,0.00014898,2]
[425288257,1781647846000,-500.0,0.00014898,2]
[425288261,1781647846000,-500.0,0.00014898,2]
[425288256,1781647846000,-500.0,0.00014898,2]
[425288254,1781647846000,-500.0,0.00014898,2]
[425288255,1781647846000,-500.0,0.00014898,2]
[425288250,1781647846000,-500.0,0.00014898,2]
[425288252,1781647846000,-422.63889932,0.00014898,2]
[425288260,1781647846000,-499.49275748,0.00014898,2]
[425288246,1781647846000,-500.0,0.00014898,2]
[425288292,1781647847000,-500.0,0.00014999,2]
[425288288,1781647847000,-168.15625109,0.0001497,2]
[425288283,1781647847000,-1321.73875768,0.000149,2]
[425288289,1781647847000,-2474.65,0.0001499,2]
[425288294,1781647847000,-500.0,0.00014999,2]
[425288304,1781647847000,-200.0,0.00014999,7]
[425288300,1781647847000,-200.0,0.00014999,2]
[425288298,1781647847000,-670.041,0.00014999,2]
[425288295,1781647847000,-500.0,0.00014999,2]
[425288296,1781647847000,-500.0,0.00014999,2]
[425288302,1781647847000,-200.0,0.00014999,7]
[425288291,1781647847000,-500.0,0.00014999,2]
[425288299,1781647847000,-200.0,0.00014999,2]
[425288293,1781647847000,-505.81197487,0.00014999,2]
[425288287,1781647847000,-172.72973787,0.00014925,2]
[425288271,1781647847000,-500.0,0.00014898,2]
[425288286,1781647847000,-10588.81795724,0.000149,2]
[425288301,1781647847000,-200.0,0.00014999,2]
[425288281,1781647847000,-2353.94696132,0.000149,2]
[425288280,1781647847000,-158.52568729,0.000149,2]
[425288274,1781647847000,-500.0,0.00014898,2]
[425288273,1781647847000,-500.0,0.00014898,2]
[425288272,1781647847000,-500.0,0.00014898,2]
[425288290,1781647847000,-2474.65,0.0001499,2]
[425288278,1781647847000,-4952.9304,0.000149,2]
[425288275,1781647847000,-500.0,0.00014898,2]
[425288276,1781647847000,-1044.0716675,0.00014898,2]
[425288279,1781647847000,-10000.0,0.000149,2]
[425288282,1781647847000,-271.22308674,0.000149,2]
[425288284,1781647847000,-335.01023031,0.000149,2]
[425288285,1781647847000,-296.99088574,0.000149,2]
[425288277,1781647847000,-3360.2246,0.00014899,2]
[425288297,1781647847000,-500.0,0.00014999,2]
[425288330,1781647847000,-583.11,0.00014999,2]
[425288307,1781647847000,-500.0,0.00014999,2]
[425288303,1781647847000,-200.0,0.00014999,7]
[425288331,1781647847000,-583.11,0.00014999,2]
[425288333,1781647847000,-583.11,0.00014999,2]
[425288335,1781647847000,-583.11,0.00014999,2]
[425288336,1781647847000,-583.11,0.00014999,2]
[425288334,1781647847000,-583.11,0.00014999,2]
[425288332,1781647847000,-583.11,0.00014999,2]
[425288324,1781647847000,-583.11,0.00014999,2]
[425288323,1781647847000,-583.11,0.00014999,2]
[425288326,1781647847000,-583.11,0.00014999,2]
[425288327,1781647847000,-583.11,0.00014999,2]
[425288325,1781647847000,-583.11,0.00014999,2]
[425288328,1781647847000,-583.11,0.00014999,2]
[425288322,1781647847000,-583.11,0.00014999,2]
[425288318,1781647847000,-500.0,0.00014999,2]
[425288337,1781647847000,-202951.0775398,0.00015,2]
[425288320,1781647847000,-500.0,0.00014999,2]
[425288321,1781647847000,-321.14602171,0.00014999,2]
[425288305,1781647847000,-2000.0,0.00014999,2]
[425288311,1781647847000,-500.0,0.00014999,2]
[425288310,1781647847000,-500.0,0.00014999,2]
[425288308,1781647847000,-500.0,0.00014999,2]
[425288314,1781647847000,-500.0,0.00014999,2]
[425288309,1781647847000,-500.0,0.00014999,2]
[425288312,1781647847000,-500.0,0.00014999,2]
[425288315,1781647847000,-500.0,0.00014999,2]
[425288306,1781647847000,-500.0,0.00014999,2]
[425288313,1781647847000,-500.0,0.00014999,2]
[425288317,1781647847000,-500.0,0.00014999,2]
[425288316,1781647847000,-500.0,0.00014999,2]
[425288319,1781647847000,-224.22628385,0.00014999,2]
[425288329,1781647847000,-583.11,0.00014999,2]
[425288353,1781647848000,-500.0,0.00014999,2]
[425288350,1781647848000,-417.16370756,0.00014999,2]
[425288349,1781647848000,-500.0,0.00014999,2]
[425288346,1781647848000,-500.0,0.00014999,2]
[425288354,1781647848000,-500.0,0.00014999,2]
[425288351,1781647848000,-82.83629244,0.00014999,2]
[425288347,1781647848000,-500.0,0.00014999,2]
[425288338,1781647848000,-500.0,0.00014999,2]
[425288355,1781647848000,-601.72,0.00014999,2]
[425288345,1781647848000,-500.0,0.00014999,2]
[425288341,1781647848000,-76.36457267,0.00014999,2]
[425288340,1781647848000,-361.15534669,0.00014999,2]
[425288343,1781647848000,-500.0,0.00014999,2]
[425288342,1781647848000,-500.0,0.00014999,2]
[425288339,1781647848000,-62.48008064,0.00014999,2]
[425288348,1781647848000,-500.0,0.00014999,2]
[425288344,1781647848000,-500.0,0.00014999,2]
[425288352,1781647848000,-500.0,0.00014999,2]
[425288364,1781647848000,-3408.0,0.00015,2]
[425288358,1781647848000,-9502.42465742,0.00015,2]
[425288371,1781647848000,-13038.98681905,0.00015,2]
[425288356,1781647848000,-2746450.48594246,0.00015,2]
[425288374,1781647848000,-1634.79999985,0.00015,2]
[425288373,1781647848000,-74919.19130588,0.00015,2]
[425288375,1781647848000,-503.88215133,0.00015,2]
[425288370,1781647848000,-16869.13636287,0.00015,2]
[425288369,1781647848000,-595.80310028,0.00015,2]
[425288366,1781647848000,-316.4671945,0.00015,2]
[425288372,1781647848000,-4274.95847609,0.00015,2]
[425288367,1781647848000,-1298.72636785,0.00015,2]
[425288365,1781647848000,-804.8152909,0.00015,2]
[425288363,1781647848000,-2025.6419999,0.00015,2]
[425288360,1781647848000,-5845.62649535,0.00015,2]
[425288362,1781647848000,-17614.77185017,0.00015,2]
[425288361,1781647848000,-47638.26990554,0.00015,2]
[425288359,1781647848000,-1500.0,0.00015,2]
[425288357,1781647848000,-662.34366678,0.00015,2]
[425288368,1781647848000,-1005.48140431,0.00015,2]
[425288376,1781647869000,-319.25656961,0.00015,2]
[425288377,1781647891000,1154.421727,0.00013699,2]
[425288378,1781647891000,-856.09120578,0.00014999,2]
[425288379,1781647892000,-562.4801,0.00014899,2]
[425288381,1781647892000,-500.0,0.00014999,2]
[425288382,1781647892000,-484519.65091235,0.00015,2]
[425288380,1781647892000,-58.26093132,0.00014999,2]
[425288384,1781647893000,500.0,0.00014999,2]
[425288383,1781647893000,376.5412781,0.00014358,2]
[425288385,1781647914000,-683.76736669,0.00015023,2]
[425288386,1781647923000,365.21135331,0.00014897,2]
[425288387,1781647933000,500.0,0.00014897,2]
[425288388,1781647934000,500.0,0.00014897,2]
[425288390,1781647934000,500.0,0.00014897,2]
[425288389,1781647934000,500.0,0.00014897,2]
[425288392,1781647934000,500.0,0.00014897,2]
[425288391,1781647934000,500.0,0.00014897,2]
[425288393,1781647934000,562.05398587,0.00014897,2]
[425288394,1781647935000,170.05,0.00012404,2]
[425288395,1781647937000,288.595432,0.00013699,2]
[425288397,1781647950000,6722.3485,0.000148,2]
[425288399,1781647952000,106348.9149731,0.00015,2]
[425288400,1781647955000,370.08989393,0.00014897,2]
[425288401,1781647957000,152.0,0.00014754,2]
[425288405,1781647980000,500.0,0.00014999,2]
[425288404,1781647980000,500.0,0.00014999,2]
[425288403,1781647980000,500.0,0.00014999,2]
[425288402,1781647980000,500.0,0.00014999,2]
[425288406,1781647981000,500.0,0.00014999,2]
[425288407,1781647981000,500.24202396,0.00014999,2]
[425288408,1781648004000,150.0,0.0001465,2]
[425288410,1781648050000,500.0,0.00014999,2]
[425288411,1781648053000,197.85,0.00014649,2]
[425288412,1781648056000,500.0,0.00014999,2]
[425288416,1781648057000,500.0,0.00014999,2]
[425288415,1781648057000,500.0,0.00014999,2]
[425288414,1781648057000,500.0,0.00014999,2]
[425288413,1781648057000,500.0,0.00014999,2]
[425288419,1781648058000,500.0,0.00014999,2]
[425288418,1781648058000,500.0,0.00014999,2]
[425288417,1781648058000,500.0,0.00014999,2]
[425288420,1781648059000,500.0,0.00014999,2]
[425288422,1781648059000,173.46902805,0.00014999,2]
[425288421,1781648059000,500.0,0.00014999,2]
[425288424,1781648100000,200.0,0.00014649,2]
[425288425,1781648150000,639.44,0.00014621,2]
[425288426,1781648151000,174.72279326,0.00014968,2]
[425288427,1781648194000,500.0,0.00014999,2]
[425288429,1781648195000,500.0,0.00014999,2]
[425288428,1781648195000,500.0,0.00014999,2]
[425288430,1781648217000,500.0,0.00014999,2]
[425288431,1781648332000,4288.485965,0.00015,2]
[425288433,1781648430000,151.0,0.0001463,2]
[425288434,1781648449000,166.66,0.0001394,2]
[425288435,1781648449000,166.66,0.00014233,2]
[425288437,1781648449000,166.66,0.0001482,2]
[425288436,1781648449000,166.66,0.00014527,2]
[425288438,1781648464000,84547.2693832,0.00015,2]
[425288442,1781648553000,3817.3957119,0.00015,2]
[425288443,1781648574000,152.0,0.00029904,120]
[425288444,1781648590000,2127.1056277,0.00015,2]
[425288445,1781648620000,200.0,0.00014586,2]
[425288446,1781648646000,164.0,0.00014652,2]
[425288447,1781648706000,3245.0,0.00030137,120]
[425288448,1781648721000,364.42,0.00014698,2]
[425288449,1781648726000,116172.1938046,0.00015,2]
[425288450,1781648734000,250.0,0.00014,2]
[425288451,1781648754000,272.18,0.00014703,2]
[425288452,1781648862000,223.99,0.00014731,2]
[425288453,1781648906000,200.0,0.00014712,2]
[425288454,1781648911000,623.27,0.00014705,2]
[425288455,1781648941000,587.1280534,0.00015,2]
[425288465,1781649031000,-281.16582259,0.00015068,7]
[425288459,1781649031000,-200.0,0.00015023,2]
[425288460,1781649031000,-139.74123453,0.00015023,2]
[425288464,1781649031000,-500.0,0.00015068,7]
[425288461,1781649031000,-60.25876547,0.00015023,2]
[425288463,1781649031000,-500.0,0.00015068,7]
[425288462,1781649031000,-300.0,0.00015067,2]
[425288466,1781649031000,-218.83417741,0.00015068,7]
[425288467,1781649031000,-500.0,0.00015068,7]
[425288470,1781649031000,-131.08723953,0.00015068,7]
[425288468,1781649031000,-500.0,0.00015068,7]
[425288474,1781649031000,-500.0,0.00015068,7]
[425288473,1781649031000,-500.0,0.00015068,7]
[425288471,1781649031000,-368.91276047,0.00015068,7]
[425288475,1781649031000,-500.0,0.00015068,7]
[425288472,1781649031000,-500.0,0.00015068,7]
[425288476,1781649031000,-500.0,0.00015068,7]
[425288477,1781649031000,-347.88723953,0.00015068,7]
[425288469,1781649031000,-500.0,0.00015068,7]
[425288582,1781649038000,-150.0,0.00015217,2]
[425288547,1781649038000,-152.0,0.00015215,2]
[425288549,1781649038000,-328.52705569,0.00015215,2]
[425288544,1781649038000,-152.0,0.00015215,2]
[425288545,1781649038000,-320.0,0.00015215,2]
[425288542,1781649038000,-313.0,0.00015215,2]
[425288546,1781649038000,-320.0,0.00015215,2]
[425288543,1781649038000,-319.0,0.00015215,2]
[425288553,1781649038000,-151.0,0.00015215,2]
[425288550,1781649038000,-151.0,0.00015215,2]
[425288548,1781649038000,-77.47294431,0.00015215,2]
[425288552,1781649038000,-150.0,0.00015215,2]
[425288558,1781649038000,-150.0,0.00015215,2]
[425288554,1781649038000,-152.0,0.00015215,2]
[425288555,1781649038000,-151.0,0.00015215,2]
[425288560,1781649038000,-151.0,0.00015215,2]
[425288557,1781649038000,-151.0,0.00015215,2]
[425288561,1781649038000,-151.0,0.00015215,2]
[425288563,1781649038000,-151.0,0.00015215,2]
[425288559,1781649038000,-150.0,0.00015215,2]
[425288576,1781649038000,-319.0,0.00015217,2]
[425288580,1781649038000,-317.0,0.00015217,2]
[425288565,1781649038000,-316.0,0.00015215,2]
[425288556,1781649038000,-151.0,0.00015215,2]
[425288541,1781649038000,-316.0,0.00015215,2]
[425288604,1781649038000,-200.0,0.00015325,2]
[425288540,1781649038000,-150.0,0.00015215,2]
[425288585,1781649038000,-150.0,0.00015218,2]
[425288518,1781649038000,-175.41342113,0.00015068,7]
[425288519,1781649038000,-324.58657887,0.00015068,7]
[425288517,1781649038000,-152.11276047,0.00015068,7]
[425288520,1781649038000,-413.3103923,0.00015068,7]
[425288521,1781649038000,-86.6896077,0.00015068,7]
[425288524,1781649038000,-230.59840192,0.00015068,7]
[425288523,1781649038000,-269.40159808,0.00015068,7]
[425288522,1781649038000,-500.0,0.00015068,7]
[425288525,1781649038000,-500.0,0.00015068,7]
[425288528,1781649038000,-500.0,0.00015068,7]
[425288551,1781649038000,-150.0,0.00015215,2]
[425288527,1781649038000,-281.70019118,0.00015068,7]
[425288526,1781649038000,-218.29980882,0.00015068,7]
[425288530,1781649038000,-615.86,0.00015068,7]
[425288531,1781649038000,-160.0,0.00015072,2]
[425288533,1781649038000,-166.66,0.00015114,2]
[425288538,1781649038000,-317.0,0.00015215,2]
[425288537,1781649038000,-201.93121012,0.00015215,2]
[425288536,1781649038000,-163.7,0.00015215,2]
[425288532,1781649038000,-163.25,0.00015087,2]
[425288534,1781649038000,-200.0,0.00015173,2]
[425288535,1781649038000,-200.0,0.00015173,2]
[425288539,1781649038000,-314.0,0.00015215,2]
[425288529,1781649038000,-500.0,0.00015068,7]
[425288569,1781649038000,-151.0,0.00015215,2]
[425288610,1781649038000,-200.0,0.00015478,2]
[425288572,1781649038000,-314.0,0.00015216,2]
[425288624,1781649038000,-150.0,0.000159,2]
[425288626,1781649038000,-337.16060604,0.00016,2]
[425288622,1781649038000,-233.0,0.00015819,2]
[425288619,1781649038000,-200.0,0.00015633,2]
[425288625,1781649038000,-300.0,0.00016,2]
[425288623,1781649038000,-150.0,0.000159,2]
[425288621,1781649038000,-152.0,0.00015709,2]
[425288627,1781649038000,-163.25,0.00016052,2]
[425288630,1781649038000,-510.0,0.00016197,2]
[425288639,1781649038000,-151.0,0.00016516,2]
[425288631,1781649038000,-337.16060604,0.000162,2]
[425288633,1781649038000,-607.17290108,0.00016338,2]
[425288632,1781649038000,-312.0,0.00016203,2]
[425288635,1781649038000,-171.031884,0.00016438,2]
[425288634,1781649038000,-2000.0,0.00016338,2]
[425288567,1781649038000,-317.0,0.00015215,2]
[425288637,1781649038000,-639.44,0.00016449,2]
[425288638,1781649038000,-1000.0,0.000165,2]
[425288640,1781649038000,-2500.0,0.00016525,2]
[425288642,1781649038000,-2500.0,0.00016525,2]
[425288641,1781649038000,-2500.0,0.00016525,2]
[425288643,1781649038000,-2500.0,0.00016525,2]
[425288644,1781649038000,-2500.0,0.00016525,2]
[425288629,1781649038000,-337.16060604,0.000161,2]
[425288628,1781649038000,-900.0,0.0001606,2]
[425288636,1781649038000,-230.84,0.00016438,2]
[425288618,1781649038000,-200.0,0.00015633,2]
[425288620,1781649038000,-150.0,0.00015669,2]
[425288574,1781649038000,-151.0,0.00015216,2]
[425288589,1781649038000,-312.0,0.00015219,2]
[425288591,1781649038000,-151.0,0.00015227,2]
[425288593,1781649038000,-313.0,0.00015228,2]
[425288605,1781649038000,-311.0,0.00015334,2]
[425288597,1781649038000,-320.0,0.00015257,2]
[425288601,1781649038000,-151.0,0.00015261,2]
[425288602,1781649038000,-500.0,0.00015273,2]
[425288606,1781649038000,-313.0,0.00015334,2]
[425288607,1781649038000,-315.0,0.00015334,2]
[425288595,1781649038000,-312.0,0.00015245,2]
[425288599,1781649038000,-316.0,0.00015257,2]
[425288608,1781649038000,-150.0,0.00015367,2]
[425288609,1781649038000,-166.66,0.00015407,2]
[425288587,1781649038000,-319.0,0.00015219,2]
[425288613,1781649038000,-150.0,0.0001554,2]
[425288617,1781649038000,-2000.0,0.00015627,2]
[425288615,1781649038000,-163.25,0.0001557,2]
[425288612,1781649038000,-150.0,0.00015518,2]
[425288614,1781649038000,-437.49843067,0.00015547,2]
[425288616,1781649038000,-500.0,0.00015627,2]
[425288611,1781649038000,-200.0,0.00015478,2]
[425288603,1781649038000,-200.0,0.00015325,2]
[425288649,1781649039000,-230.81,0.00016578,2]
[425288650,1781649039000,-168.54,0.00016712,2]
[425288647,1781649039000,-235.07791664,0.00016543,2]
[425288646,1781649039000,-388.19208336,0.00016543,2]
[425288651,1781649039000,-2711.76208336,0.000169,2]
[425288645,1781649039000,-163.25,0.00016534,2]
[425288662,1781649040000,-163.25,0.00017016,2]
[425288652,1781649040000,-265.65232614,0.000169,2]
[425288653,1781649040000,-477.24450218,0.000169,2]
[425288654,1781649040000,-93.48532644,0.000169,2]
[425288655,1781649040000,-521.64962786,0.000169,2]
[425288657,1781649040000,-1483.57598021,0.000169,2]
[425288656,1781649040000,-586.07301996,0.000169,2]
[425288659,1781649040000,-82.75438703,0.000169,2]
[425288660,1781649040000,-152.0,0.00016983,2]
[425288661,1781649040000,-1168.23609955,0.00017,2]
[425288664,1781649040000,-3115.49427882,0.000171,2]
[425288675,1781649040000,-429.41982483,0.00017599,2]
[425288665,1781649040000,-339.16463286,0.000171,2]
[425288674,1781649040000,-1037.84017517,0.00017599,2]
[425288663,1781649040000,-651.883712,0.00017068,2]
[425288673,1781649040000,-500.0,0.00017599,2]
[425288672,1781649040000,-900.0,0.0001743,2]
[425288671,1781649040000,-866.0,0.00017417,2]
[425288676,1781649040000,-166.87817517,0.00017599,2]
[425288669,1781649040000,-3454.65891168,0.000174,2]
[425288668,1781649040000,-2767.5383415,0.000172,2]
[425288667,1781649040000,-3454.65891168,0.000172,2]
[425288666,1781649040000,-2767.5383415,0.000171,2]
[425288670,1781649040000,-2767.5383415,0.000174,2]
[425288685,1781649042000,-333.12182483,0.00017599,2]
[425288686,1781649042000,-1514.84248047,0.000176,2]
[425288689,1781649043000,-413.74,0.000176,2]
[425288702,1781649045000,-592.33545942,0.00018,2]
[425288698,1781649045000,-607.17290099,0.00017859,2]
[425288696,1781649045000,-2767.5383415,0.000177,2]
[425288700,1781649045000,-3454.65891168,0.000179,2]
[425288699,1781649045000,-1242.44735456,0.0001789,2]
[425288697,1781649045000,-651.883712,0.00017801,2]
[425288695,1781649045000,-3454.65891168,0.000177,2]
[425288694,1781649045000,-2767.5383415,0.000176,2]
[425288693,1781649045000,-56.9773474,0.000176,2]
[425288692,1781649045000,-1469.09908381,0.000176,2]
[425288703,1781649045000,-1039.37263753,0.00018,2]
[425288704,1781649045000,-350.0,0.00018,2]
[425288701,1781649045000,-2767.5383415,0.000179,2]
[425288705,1781649045000,-3454.65891168,0.000181,2]
[425288717,1781649045000,-1039.37263753,0.000184,2]
[425288715,1781649045000,-623.27,0.00018381,2]
[425288711,1781649045000,-2767.5383415,0.000183,2]
[425288713,1781649045000,-293.13395153,0.000183,2]
[425288712,1781649045000,-3869.13255372,0.000183,2]
[425288716,1781649045000,-592.33545942,0.000184,2]
[425288710,1781649045000,-3454.65891168,0.000183,2]
[425288709,1781649045000,-639.44,0.00018277,2]
[425288707,1781649045000,-592.33545942,0.000182,2]
[425288706,1781649045000,-2767.5383415,0.000181,2]
[425288708,1781649045000,-1039.37263753,0.000182,2]
[425288714,1781649045000,-89910.38,0.00018356,2]
[425288738,1781649046000,-20487.75,0.00019178,2]
[425288742,1781649046000,-607.17290099,0.00019381,2]
[425288737,1781649046000,-1039.37263753,0.000191,2]
[425288734,1781649046000,-5249.5529582,0.00019,2]
[425288736,1781649046000,-180.0,0.00019065,2]
[425288735,1781649046000,-160.0,0.00019,2]
[425288732,1781649046000,-270.483074,0.00018795,2]
[425288740,1781649046000,-1555.5,0.00019272,2]
[425288739,1781649046000,-651.883712,0.00019267,2]
[425288733,1781649046000,-1039.37263753,0.000189,2]
[425288731,1781649046000,-1500.0,0.00018724,2]
[425288719,1781649046000,-2000.0,0.0001843,2]
[425288727,1781649046000,-850.0,0.00018713,2]
[425288729,1781649046000,-28702.52,0.0001872,2]
[425288724,1781649046000,-651.883712,0.00018534,2]
[425288722,1781649046000,-3454.65891168,0.000185,2]
[425288728,1781649046000,-1877.07,0.0001872,2]
[425288723,1781649046000,-2767.5383415,0.000185,2]
[425288726,1781649046000,-1039.37263753,0.000187,2]
[425288721,1781649046000,-1039.37263753,0.000185,2]
[425288725,1781649046000,-592.33545942,0.000187,2]
[425288720,1781649046000,-592.33545942,0.000185,2]
[425288718,1781649046000,-500.0,0.0001843,2]
[425288730,1781649046000,-378.55,0.0001872,2]
[425288741,1781649046000,-1039.37263753,0.000193,2]
[425288746,1781649046000,-3869.1325537,0.00019589,2]
[425288744,1781649046000,-1008.0,0.00019452,2]
[425288770,1781649046000,-3242.24530078,0.0002,2]
[425288769,1781649046000,-3344.03633335,0.0002,2]
[425288767,1781649046000,-310.546,0.0002,2]
[425288768,1781649046000,-256.81865679,0.0002,2]
[425288764,1781649046000,-1256.12419636,0.0002,2]
[425288762,1781649046000,-370.02160292,0.0002,2]
[425288763,1781649046000,-1372.4396001,0.0002,2]
[425288761,1781649046000,-5002.45212761,0.0002,2]
[425288760,1781649046000,-152.0,0.0002,2]